Cogmind - Beta 11 X8 @@@ ROGUE MODE // 2021.11.23 @ 01:11:38 Player: Runia Result: Destroyed by H-66 Slayer with Gauss Rifle Performance ------------- Evolutions (4) 2000 Regions Visited (16) 3200 Robots Destroyed (262) 1310 Value Destroyed (9299) 9299 Prototype IDs (36) 720 Alien Tech Used (0) 0 Bonus (1966) 1966 TOTAL SCORE: 18495 Bonus ------- High Alert Combat Kills 466 Follower Combat Kills 27 Entered Garrisons 400 Used RIF Installer 1000 Aligned with FarCom 300 Friendly Fire -227 Cogmind --------- Core Integrity 0/850 Matter 27/300 Energy 58/100 System Corruption 2% Temperature Cool (0) Movement Core (50) Location -6/Factory Parts ------- > --- POWER (1) -------- (None) > --- PROPULSION (4) --- (None) > --- UTILITY (7) ------ (None) > --- WEAPON (3) ------- Power Sword > --- INVENTORY (5) ---- Improved Sensor Array Plasma Cutter Peak State ------------ > --- POWER ------------ Improved Deuterium Engine > --- PROPULSION ------- Heavy Treads Armored Huge Wheel > --- UTILITY ---------- Coolant Injector Cargo Storage Unit Improved Transmission Jammer Improved Light Armor Plating Improved Medium Armor Plating Layered Medium Armor Plating > --- WEAPON ----------- Force Rifle Force Rifle Heavy Ion Cannon > --- INVENTORY -------- Heavy Treads Armored Wheel Energy Well Matter Compressor Improved Sensor Array Transmission Jammer Improved Utility Shielding Hardened Heavy Armor Plating Improved Medium Armor Plating Damper Plating Improved Hacking Suite Relay Coupler [Hunter] Relay Coupler [Heavy] Improved Field Recycling Unit Drone Bay Improved EM Pulse Cannon Enhanced Autogun Makeshift Shrapnel Gun Mini Grenade Launcher Heavy Rocket Launcher Heavy Rocket Launcher Remote Datajack Plasma Cutter Spear Fire Trap [Rating: 74] Favorites ----------- Power Improved Deuterium Engine Engine Improved Deuterium Engine Reactor Antimatter Reactor Propulsion Armored Wheel Treads Armored Treads Leg Aluminum Leg Wheel Armored Wheel Utility Cargo Storage Unit Device Coolant Injector Storage Cargo Storage Unit Processor Advanced Targeting Computer Hackware Relay Coupler [NC] Protection Improved Medium Armor Plating Weapon Gauss Rifle Energy Gun Force Rifle Energy Cannon Advanced Beam Cannon Ballistic Gun Gauss Rifle Launcher Mini Grenade Launcher Special Weapon Remote Datajack Impact Weapon Powered Hammer Slashing Weapon Katana Piercing Weapon Spear Build | -11 -10 -10 -10 -9 -8 -8 -8 -8 -7 -7 -7 -7 -7 -7 -6 -6 ------- Run | Scr Mat Min Exi Min Mat Gar Mat Gar Fac Was Fac Low Low Zio Pro Fac Slots Evolved 8 | . . . . . 4 . . . 2 . . . . . . 2 Power . | . . . . . . . . . . . . . . . . . Propulsion 2 | . . . . . 1 . . . . . . . . . . 1 Utility 5 | . . . . . 2 . . . 2 . . . . . . 1 Weapon 1 | . . . . . 1 . . . . . . . . . . . Parts Attached 301 | 2 22 3 1 3 67 13 34 20 5 17 30 22 7 4 4 47 Power 14 | . 2 . . . 4 . 3 . . 1 1 1 . . . 2 Engine 13 | . 2 . . . 4 . 3 . . . 1 1 . . . 2 Core . | . . . . . . . . . . . . . . . . . Reactor 1 | . . . . . . . . . . 1 . . . . . . Propulsion 56 | 2 6 . 1 . 19 3 9 4 . . 3 3 . 1 . 5 Treads 19 | 2 . . . . 6 1 4 1 . . 2 1 . . . 2 Leg 9 | . 6 . . . 3 . . . . . . . . . . . Wheel 28 | . . . 1 . 10 2 5 3 . . 1 2 . 1 . 3 Hover . | . . . . . . . . . . . . . . . . . Flight . | . . . . . . . . . . . . . . . . . Utility 80 | . 4 1 . 1 15 3 6 4 4 8 9 7 . . 3 15 Device 29 | . 1 . . . 5 1 1 . 2 3 4 4 . . 2 6 Storage 6 | . 3 . . 1 1 . . . 1 . . . . . . . Processor 4 | . . . . . 2 . 1 . . . . 1 . . . . Hackware 13 | . . . . . 3 . 1 3 . 2 2 1 . . . 1 Protection 28 | . . 1 . . 4 2 3 1 1 3 3 1 . . 1 8 Artifact . | . . . . . . . . . . . . . . . . . Weapon 151 | . 10 2 . 2 29 7 16 12 1 8 17 11 7 3 1 25 Energy Gun 5 | . . . . . 2 . . . . . . . . . . 3 Energy Cannon 18 | . 2 1 . 1 2 . 1 3 . . 2 . . . . 6 Ballistic Gun 67 | . 6 . . . 18 4 10 4 1 4 6 4 4 1 1 4 Ballistic Cannon . | . . . . . . . . . . . . . . . . . Launcher 27 | . 1 1 . 1 5 2 2 1 . . 3 4 3 . . 4 Special Weapon 19 | . . . . . . . 1 4 . 4 4 3 . . . 3 Impact Weapon 1 | . . . . . . . . . . . . . . . . 1 Slashing Weapon 7 | . 1 . . . 2 1 2 . . . . . . . . 1 Piercing Weapon 7 | . . . . . . . . . . . 2 . . 2 . 3 Special Melee Weapon . | . . . . . . . . . . . . . . . . . Unidentified Prototypes 3 | . 1 . . . 1 . 1 . . . . . . . . . Parts Lost 54 | . 1 . . 1 12 2 9 1 . . 1 5 . . . 22 Power 4 | . . . . . . . 1 . . . . 1 . . . 2 Propulsion 15 | . 1 . . . 3 1 3 . . . . 1 . . . 6 Utility 12 | . . . . 1 1 . 2 . . . 1 . . . . 7 Weapon 23 | . . . . . 8 1 3 1 . . . 3 . . . 7 Highest Loss Streak 17 | . 1 . . 1 4 2 7 1 . . 1 4 . . . 17 Average Slot Usage (%) 86 | . 94 100 100 97 88 90 87 88 87 80 82 78 75 76 76 72 Engine 8 | . 14 14 14 14 9 9 9 9 7 2 1 7 7 7 7 5 Treads 6 | . 9 . . . 7 9 13 9 7 7 7 5 . . . 5 Leg 4 | . 18 28 27 14 1 . . . . . . . . . . . Wheel 11 | . . . . 14 17 18 13 18 15 15 8 8 15 15 15 5 Device 6 | . 5 . . . 7 9 3 . 7 5 11 9 7 7 4 13 Storage 9 | . 17 15 14 14 9 9 9 9 6 7 7 7 7 7 7 5 Processor 1 | . . . . . 2 . 2 9 7 . . . . . . . Hackware 3 | . . . . . 1 . . 7 . 3 5 13 7 7 7 3 Protection 7 | . . 12 14 11 4 9 9 1 15 8 8 2 7 7 10 10 Energy Cannon 3 | . 2 13 14 14 2 . . 3 7 7 5 . . . . . Ballistic Gun 18 | . 22 14 14 14 21 23 25 17 11 12 14 17 21 18 20 11 Naked Turns . | . . . . . . . . . . . . . . . . . Heaviest Build 215 | 11 32 33 33 53 165 165 188 172 175 215 215 186 186 182 188 187 Greatest Support 70 | 40 40 20 20 10 26 22 62 28 24 24 28 70 40 40 40 28 Greatest Overweight (x) 12 | . 9 1 3 5 7 8 10 7 7 8 8 6 4 4 4 12 Average Overweight (x) 4 | . . 1 1 3 6 7 5 5 7 7 6 4 4 4 4 5 Largest Inventory Capacity 30 | 8 15 15 15 20 30 30 30 30 30 30 30 30 30 30 30 30 Average Capacity 26 | 8 11 15 15 17 29 30 30 30 28 30 30 30 30 30 30 29 Most Carried 30 | 6 15 15 15 17 30 30 30 30 29 30 30 30 28 27 26 30 Average Carried 24 | 4 9 15 14 15 24 28 29 29 23 28 29 28 27 26 25 27 Final Capacity 30 | 8 15 15 15 20 30 30 30 30 30 30 30 30 30 30 30 5 Final Carried 30 | 2 15 15 15 17 29 30 30 30 28 30 30 28 27 25 26 2 Class Distribution -------------------- 30% | Hauler-Tank 20% | Hauler-Mutant 17% | Mutant 7% | Bothacker-Mutant 6% | Hauler-Gunner 5% | Bothacker-Gunner 4% | Bothacker-Tank Dominant Class ---------------- Mutant | -10/Materials Mutant | -10/Mines Mutant | -10/Exiles Mutant | -9/Mines Hauler-Tank | -8/Materials Hauler-Tank | -8/Garrison Hauler-Tank | -8/Materials Bothacker-Gunner | -8/Garrison Bothacker-Mutant | -7/Factory Bothacker-Tank | -7/Waste Hauler-Tank | -7/Factory Hauler-Mutant | -7/Lower Caves Hauler-Tank | -7/Lower Caves Hauler-Mutant | -7/Zion Hauler-Tank | -6/Proximity Caves Hauler-Mutant | -6/Factory Resources | -11 -10 -10 -10 -9 -8 -8 -8 -8 -7 -7 -7 -7 -7 -7 -6 -6 ----------- Run | Scr Mat Min Exi Min Mat Gar Mat Gar Fac Was Fac Low Low Zio Pro Fac Matter Collected 8222 | 200 570 60 . 55 1442 656 1307 444 48 630 994 841 419 . 155 401 Remotely . | . . . . . . . . . . . . . . . . . Salvage Created 11337 | . 716 119 . 153 2360 1113 2310 782 48 916 1259 551 288 . 148 574 Parts 553 | . 53 13 . 16 133 46 116 35 3 11 46 22 19 . 4 36 Haulers Intercepted 11 | . 1 . . . 5 . 5 . . . . . . . . . Recyclers Shooed 8 | . . 1 . . . . 1 . . . 4 . . . . 2 Parts Field Recycled . | . . . . . . . . . . . . . . . . . Retrieved Matter . | . . . . . . . . . . . . . . . . . Parts Self-Destructed 50 | . . . . . . . . . . . . 30 17 . 3 . Prevented 1 | . . . . . . . . . . . . . 1 . . . Kills | -11 -10 -10 -10 -9 -8 -8 -8 -8 -7 -7 -7 -7 -7 -7 -6 -6 ------- Run | Scr Mat Min Exi Min Mat Gar Mat Gar Fac Was Fac Low Low Zio Pro Fac Combat Hostiles Destroyed 198 | . 14 5 . 5 42 19 32 13 1 3 16 18 9 . 3 18 Melee 2 | . . . . . . . . . . . . . . . . 2 Guns 122 | . 13 . . . 29 16 27 10 1 2 6 8 2 . 3 5 Cannons 17 | . . 2 . 1 7 . . . . 1 4 . . . . 2 AOE 57 | . 1 3 . 4 6 3 5 3 . . 6 10 7 . . 9 Classes Destroyed 19 | . 7 . . 1 4 1 4 . . 1 . . 1 . . . Worker 16 | . 4 . . . 4 . 4 . . . 2 . . . . 2 Builder 10 | . 1 1 . . 3 . 3 . . . . . . . . 2 Tunneler 4 | . . . . 1 1 . 2 . . . . . . . . . Hauler 11 | . 1 . . . 5 . 5 . . . . . . . . . Recycler 15 | . 1 . . 1 2 . 4 . . . 7 . . . . . Mechanic 2 | . . . . . . . 1 . . . . . . . . 1 Operator 4 | . 2 . . . . . 1 . . . 1 . . . . . Watcher 3 | . . . . . 1 . 2 . . . . . . . . . Swarmer 47 | . 3 3 . 4 7 . . 7 . . 4 7 4 . 1 7 Grunt 96 | . 11 2 . 1 23 14 17 4 . . 10 7 4 . 1 2 Brawler 3 | . . . . . . . 2 . . . . 1 . . . . Duelist 10 | . . . . . 3 1 . 3 . . . 2 1 . . . Sentry 24 | . . . . . 8 3 8 . . . 1 1 . . 1 2 Specialist 5 | . . . . . . 1 2 . . . . . . . . 2 Hunter 3 | . . . . . . . 1 . . . . . . . . 2 Programmer 5 | . . . . . . . 1 . 1 . 1 . . . . 2 Heavy 3 | . . . . . 1 . 1 . . . . . . . . 1 Compactor 3 | . . . . . . . . . . 3 . . . . . . Samaritan 1 | . . . . . . . . . . . . . 1 . . . Best Kill Streak 7 | . 5 3 . 4 7 6 7 4 1 1 5 6 4 . 2 6 Combat Bots Only 6 | . 4 3 . 4 6 6 6 4 1 1 4 6 4 . 2 5 Max Kills in Single Turn 4 | . 1 2 . 4 4 2 2 2 1 1 4 3 4 . 1 4 Gunslinging 1 | . . . . . 1 . . . . . . . . . . . Exploded 4 | . 1 2 . 4 3 2 1 2 . . 4 3 4 . . 3 Melee 1 | . . . . . . . . . . . . . . . . 1 Uniques/NPCs Destroyed . | . . . . . . . . . . . . . . . . . Combat | -11 -10 -10 -10 -9 -8 -8 -8 -8 -7 -7 -7 -7 -7 -7 -6 -6 -------- Run | Scr Mat Min Exi Min Mat Gar Mat Gar Fac Was Fac Low Low Zio Pro Fac Damage Taken 13643 | . 700 100 . 112 2392 712 1839 246 46 . 876 1455 381 . 195 4589 Core 1676 | . 80 17 . 20 282 30 77 19 . . 97 112 68 . 5 869 Absorbed by Shields . | . . . . . . . . . . . . . . . . . Reduced by Siege Mode 61 | . . . . . . . . . . . . . . . . 61 Core Remaining (%) 59 | 100 . . . 53 . . . 25 . . . . . . 59 . Volleys Fired 742 | . 76 12 4 9 134 43 96 101 3 59 89 40 18 . 6 52 Largest 3 | . 2 2 1 2 3 3 3 3 3 3 3 3 3 . 3 3 Hottest 225 | . 88 88 68 88 115 84 84 118 118 118 121 84 81 . 80 225 Shots Fired 1607 | . 145 22 4 17 357 119 259 143 9 149 170 77 30 . 18 88 Gun 1207 | . 135 10 . 8 293 114 247 63 6 94 89 62 20 . 18 48 Cannon 237 | . 8 10 4 8 57 . 2 9 3 44 70 . . . . 22 Launcher 66 | . 2 2 . 1 7 5 7 2 . . 5 9 10 . . 16 Special 97 | . . . . . . . 3 69 . 11 6 6 . . . 2 Kinetic 1157 | . 135 10 . 8 272 114 247 63 6 94 89 62 20 . 18 19 Thermal 345 | . 8 10 4 8 78 . 2 71 3 44 70 . . . . 47 Explosive 66 | . 2 2 . 1 7 5 7 2 . . 5 9 10 . . 16 Electromagnetic 4 | . . . . . . . . . . . . . . . . 4 Robot Hit Streak 62 | . 14 5 . 3 17 20 19 62 6 21 19 11 7 . 7 20 Robot Miss Streak 9 | . 9 3 . 2 4 1 4 3 2 3 4 3 2 . 5 2 Penetration Max 1 | . . . . . . . 1 . . . 1 . . . . . Secondary Targets 18 | . . . . . 4 5 5 2 . . 1 1 . . . . Max Gunslinging Chain 1 | . . . . . 1 1 1 1 . . 1 1 . . . . Shots Hit Robots 1068 | . 91 12 . 8 232 93 174 108 6 111 89 52 16 . 11 65 Core Hits 518 | . 43 11 . 8 117 44 86 46 2 16 40 32 20 . 6 47 Critical Kills 4 | . . . . . 3 . . . . . . 1 . . . . Critical Parts Destroyed 7 | . 1 . . . 1 1 2 1 . . . . . . . 1 Critical Strikes 19 | . 1 . . . 5 3 2 5 . 1 . 1 . . . 1 Burn 1 | . . . . . 1 . . . . . . . . . . . Meltdown 1 | . . . . . 1 . . . . . . . . . . . Destroy 11 | . 1 . . . 3 1 2 1 . 1 . 1 . . . 1 Sever 6 | . . . . . . 2 . 4 . . . . . . . . Melee Attacks 49 | . 6 . . . 6 13 2 . . . 5 . . 2 . 15 Impact 1 | . . . . . . . . . . . . . . . . 1 Slashing 34 | . 6 . . . 6 13 2 . . . . . . . . 7 Piercing 14 | . . . . . . . . . . . 5 . . 2 . 7 Sneak Attacks 2 | . 2 . . . . . . . . . . . . . . . Combat Hostiles . | . . . . . . . . . . . . . . . . . Follow-up Attacks . | . . . . . . . . . . . . . . . . . Damage Inflicted 27208 | . 1241 299 . 283 4259 2697 4623 1767 168 2583 2418 1981 1352 . 191 3346 Guns 14833 | . 828 50 . 28 3062 1558 3524 668 100 1603 1171 988 277 . 191 785 Cannons 3119 | . 164 80 . 85 663 . 26 81 68 980 731 . . . . 241 Explosions 7331 | . 91 161 . 170 534 399 1070 323 . . 516 993 1075 . . 1999 Melee 1219 | . 158 . . . . 740 . . . . . . . . . 321 Ramming 11 | . . 8 . . . . 3 . . . . . . . . . Kinetic 14189 | . 828 50 . 28 2895 1558 3524 668 100 1603 1171 988 277 . 191 308 Thermal 4458 | . 164 80 . 85 830 . 26 776 68 980 731 . . . . 718 Explosive 7331 | . 91 161 . 170 534 399 1070 323 . . 516 993 1075 . . 1999 Electromagnetic . | . . . . . . . . . . . . . . . . . Impact . | . . . . . . . . . . . . . . . . . Slashing 1126 | . 158 . . . . 740 . . . . . . . . . 228 Piercing 93 | . . . . . . . . . . . . . . . . 93 Highest Corruption 21 | . . . . . . . 2 2 . 21 21 16 13 13 . 2 Average Corruption 10 | . . . . . . . 1 2 . 13 16 13 13 13 . 1 Corruption Purged 8 | . . . . . . . . . . . 5 3 . . . . Effects 190 | . . . . . . . 1 13 . 18 74 53 22 9 . . Message Errors 41 | . . . . . . . 1 6 . 5 12 10 4 3 . . Matter Fused 48 | . . . . . . . . . . 4 17 17 6 4 . . Heat Flow Errors 24 | . . . . . . . . 2 . 3 8 8 3 . . . Energy Discharges 22 | . . . . . . . . 3 . 2 8 7 1 1 . . Data Loss (minor) 22 | . . . . . . . . . . 2 10 5 5 . . . Data Loss (major) 7 | . . . . . . . . . . . 3 2 1 1 . . Misfires 10 | . . . . . . . . . . . 9 1 . . . . Alerts 3 | . . . . . . . . . . . 1 1 1 . . . Misdirections 1 | . . . . . . . . . . . 1 . . . . . Weapon Failures 12 | . . . . . . . . 2 . 2 5 2 1 . . . Overload Shots . | . . . . . . . . . . . . . . . . . Overflow Damage 470 | . 32 . . 5 15 53 69 27 . . 21 67 12 . . 169 Projectiles 21 | . . . . . . . . . . . 21 . . . . . Explosions 364 | . . . . 5 15 . 69 27 . . . 67 12 . . 169 Melee 85 | . 32 . . . . 53 . . . . . . . . . . Knockbacks . | . . . . . . . . . . . . . . . . . Impact . | . . . . . . . . . . . . . . . . . Kinetic . | . . . . . . . . . . . . . . . . . Secondary . | . . . . . . . . . . . . . . . . . Self-Inflicted Damage 623 | . . 21 . . 68 7 33 4 . . 41 103 74 . . 272 Shots 20 | . . 1 . . 2 1 2 1 . . 1 3 3 . . 6 Rammed 1 | . . . . . . . 1 . . . . . . . . . Targets Rammed 2 | . . 1 . . . . 1 . . . . . . . . . Kicked 1 | . . 1 . . . . . . . . . . . . . . Crushed . | . . . . . . . . . . . . . . . . . Highest Temperature 526 | . 82 189 102 222 250 14 341 183 36 240 190 526 195 . 159 330 Average Temperature 63 | . 29 59 54 76 56 7 52 60 27 71 49 81 62 . 61 105 Received Heat Transfer 3619 | . 345 33 . 27 1080 396 558 36 . . 348 349 126 . 45 276 Effects 8 | . . . . . 4 . . . . 1 . 2 . . . 1 Shutdowns 1 | . . . . . . . . . . . . . . . . 1 Energy Bleed 2 | . . . . . 1 . . . . . . 1 . . . . Interference 4 | . . . . . 3 . . . . 1 . . . . . . Short Circuit 1 | . . . . . . . . . . . . 1 . . . . Siege Activations 3 | . . . . . . . . . . . . . . . . 3 Total Turns 43 | . . . . . . . . . . . . . . . . 43 Longest Duration 22 | . . . . . . . . . . . . . . . . 22 Robots Corrupted . | . . . . . . . . . . . . . . . . . Combat Hostiles . | . . . . . . . . . . . . . . . . . Parts Fried . | . . . . . . . . . . . . . . . . . Impact Corruptions . | . . . . . . . . . . . . . . . . . Robots Melted 1 | . . . . . 1 . . . . . . . . . . . Combat Hostiles . | . . . . . . . . . . . . . . . . . Parts Melted 13 | . . 1 . . 3 . . 2 . . 2 . . . . 5 Heat Transferred 8103 | . 296 148 . 148 1591 . 37 2405 74 1332 999 . . . . 1073 Parts Sabotaged . | . . . . . . . . . . . . . . . . . Parts Stolen . | . . . . . . . . . . . . . . . . . Parts Stripped . | . . . . . . . . . . . . . . . . . Power Chain Reactions . | . . . . . . . . . . . . . . . . . Missiles Intercepted . | . . . . . . . . . . . . . . . . . Alert | -11 -10 -10 -10 -9 -8 -8 -8 -8 -7 -7 -7 -7 -7 -7 -6 -6 ------- Run | Scr Mat Min Exi Min Mat Gar Mat Gar Fac Was Fac Low Low Zio Pro Fac Peak Influence 785 | . 300 185 . 145 424 785 687 718 410 144 261 . . . . 336 Initial 382 | . . 37 . . 56 224 382 243 376 143 . . . . . 37 Average 269 | . 173 48 . 80 231 589 435 470 378 127 121 . . . . 105 Maximum Alert Level 3 | . 1 . . . 2 3 2 3 2 . 1 . . . . 1 Low Security (%) 44 | 100 62 100 . 100 39 . . . . 100 82 . . . . 84 Level 1 30 | . 37 . . . 56 29 42 15 94 . 17 . . . . 15 Level 2 18 | . . . . . 3 14 56 77 5 . . . . . . . Level 3 5 | . . . . . . 55 . 6 . . . . . . . . Level 4 . | . . . . . . . . . . . . . . . . . Level 5 . | . . . . . . . . . . . . . . . . . High Security . | . . . . . . . . . . . . . . . . . Max Security . | . . . . . . . . . . . . . . . . . Squads Dispatched 29 | . 4 . . . 7 . 5 . 1 . 6 . . . . 6 Investigation 6 | . 2 . . . 1 . 1 . . . 2 . . . . . Extermination 4 | . . . . . . . . . 1 . 1 . . . . 2 Reinforcement 16 | . 2 . . . 3 . 4 . . . 3 . . . . 4 Assault . | . . . . . . . . . . . . . . . . . Garrison 3 | . . . . . 3 . . . . . . . . . . . Intercept . | . . . . . . . . . . . . . . . . . Construction Impeded 1 | . . . . . . . . . . . . . . . . 1 Haulers Reinforced 1 | . . . . . . . . . . . . . . . . 1 Active Scanning Responses . | . . . . . . . . . . . . . . . . . Cargo Convoy Interrupts . | . . . . . . . . . . . . . . . . . Stealth | -11 -10 -10 -10 -9 -8 -8 -8 -8 -7 -7 -7 -7 -7 -7 -6 -6 --------- Run | Scr Mat Min Exi Min Mat Gar Mat Gar Fac Was Fac Low Low Zio Pro Fac Distress Signals 11 | . . . . . 7 . 3 . . . . . . . . 1 Communications Jammed 23 | . . . . . . . 3 . . . . 1 . . . 19 Distress Signals 10 | . . . . . . . . . . . . 1 . . . 9 Times Spotted 291 | . 28 5 . 8 67 18 44 20 1 5 30 30 7 . 3 25 Peak Tracking Total 9 | . 5 3 9 4 6 5 7 4 1 3 5 7 3 . 3 7 Tactical Retreats 9 | . 1 . . 1 3 . . . . . 2 . 2 . . . Traps | -11 -10 -10 -10 -9 -8 -8 -8 -8 -7 -7 -7 -7 -7 -7 -6 -6 ------- Run | Scr Mat Min Exi Min Mat Gar Mat Gar Fac Was Fac Low Low Zio Pro Fac Traps Triggered 14 | . 3 . . . 1 3 . 4 1 . . 1 . . . 1 Indirectly . | . . . . . . . . . . . . . . . . . Trap Hack Attempts . | . . . . . . . . . . . . . . . . . Triggered . | . . . . . . . . . . . . . . . . . Disarmed . | . . . . . . . . . . . . . . . . . Reprogrammed . | . . . . . . . . . . . . . . . . . Reused . | . . . . . . . . . . . . . . . . . Traps Extracted . | . . . . . . . . . . . . . . . . . Installed . | . . . . . . . . . . . . . . . . . Triggered 2 | . . . . . . . . . . . . 1 1 . . . Machines | -11 -10 -10 -10 -9 -8 -8 -8 -8 -7 -7 -7 -7 -7 -7 -6 -6 ---------- Run | Scr Mat Min Exi Min Mat Gar Mat Gar Fac Was Fac Low Low Zio Pro Fac Machines Disabled 25 | . 1 3 3 . 2 1 2 5 . . 4 1 . . . 3 Max in Single Turn 2 | . 1 2 1 . 1 1 1 1 . . 1 1 . . . 2 Garrison Access 3 | . . . . . . . . . . . 2 . . . . 1 Garrison Relay 4 | . . . . . . 1 . 3 . . . . . . . . Machines Sabotaged . | . . . . . . . . . . . . . . . . . Garrisons Compromised . | . . . . . . . . . . . . . . . . . Overloaded Fab Kills . | . . . . . . . . . . . . . . . . . Hacking | -11 -10 -10 -10 -9 -8 -8 -8 -8 -7 -7 -7 -7 -7 -7 -6 -6 --------- Run | Scr Mat Min Exi Min Mat Gar Mat Gar Fac Was Fac Low Low Zio Pro Fac Machines Accessed 51 | . 5 . 2 1 12 . 12 . 1 . 12 1 . . . 5 Terminals 30 | . 4 . . 1 8 . 8 . . . 5 . . . . 4 Fabricators 2 | . . . . . . . . . . . 2 . . . . . Repair Stations 3 | . . . . . 1 . . . 1 . 1 . . . . . Recycling Units 4 | . 1 . . . . . 1 . . . 2 . . . . . Scanalyzers 4 | . . . . . 2 . 2 . . . . . . . . . Garrison Access 5 | . . . . . 1 . 1 . . . 2 . . . . 1 Total Hacks 153 | . 19 . 2 8 43 . 38 . 7 . 26 1 . . . 9 Successful 94 | . 11 . 2 3 28 . 27 . 6 . 11 1 . . . 5 Failed 58 | . 7 . . 5 15 . 11 . 1 . 15 . . . . 4 Catastrophic 9 | . . . . 1 2 . 1 . . . 5 . . . . . Database Lockouts 1 | . 1 . . . . . . . . . . . . . . . Manual 52 | . 9 . 1 7 13 . 10 . . . 9 . . . . 3 Terminals 94 | . 17 . . 8 30 . 19 . . . 13 . . . . 7 Fabricators 4 | . . . . . . . . . . . 4 . . . . . Repair Stations 16 | . . . . . 7 . . . 7 . 2 . . . . . Recycling Units 8 | . 2 . . . . . 1 . . . 5 . . . . . Scanalyzers 19 | . . . . . 5 . 14 . . . . . . . . . Garrison Access 9 | . . . . . 1 . 4 . . . 2 . . . . 2 Terminal Hacks 41 | . 8 . 2 3 15 . 7 . . . 3 1 . . . 2 Record 1 | . . . 1 . . . . . . . . . . . . . Robot Analysis 5 | . 2 . . 1 2 . . . . . . . . . . . Prototype ID Bank 9 | . 3 . . 1 2 . 3 . . . . . . . . . Open Door 1 | . . . . . . . . . . . . 1 . . . . Open DSF 1 | . . . . . . . . . . . . . . . . 1 Level Access Points 1 | . . . . . . . . . . . . . . . . 1 Branch Access Points 2 | . . . . . 1 . . . . . 1 . . . . . Terminal Index 3 | . 2 . . . 1 . . . . . . . . . . . Scanalyzer Index 1 | . . . . . 1 . . . . . . . . . . . Alert Level 1 | . . . . . 1 . . . . . . . . . . . Unreport Threat 6 | . . . . . 3 . 2 . . . 1 . . . . . Locate Traps 1 | . . . . . 1 . . . . . . . . . . . Hauler Manifests 2 | . 1 . . . 1 . . . . . . . . . . . Zone Layout 6 | . . . . 1 2 . 2 . . . 1 . . . . . EX-Prototype ID Bank 1 | . . . 1 . . . . . . . . . . . . . Fabricator Hacks 1 | . . . . . . . . . . . 1 . . . . . Network Status 1 | . . . . . . . . . . . 1 . . . . . Repair Station Hacks 14 | . . . . . 6 . . . 6 . 2 . . . . . Scan Component 7 | . . . . . 3 . . . 3 . 1 . . . . . Repair 7 | . . . . . 3 . . . 3 . 1 . . . . . Recycling Unit Hacks 2 | . 1 . . . . . . . . . 1 . . . . . Report Inventory 2 | . 1 . . . . . . . . . 1 . . . . . Scanalyzer 19 | . . . . . 5 . 14 . . . . . . . . . Insert Component 9 | . . . . . 3 . 6 . . . . . . . . . Analyze 10 | . . . . . 2 . 8 . . . . . . . . . Garrison Access Hacks 8 | . . . . . 1 . 3 . . . 2 . . . . 2 Unlock Access 2 | . . . . . 1 . 1 . . . . . . . . . Seal Access 3 | . . . . . . . . . . . 2 . . . . 1 Coupler Status 3 | . . . . . . . 2 . . . . . . . . 1 Unauthorized Hacks 9 | . 2 . . . 1 . 3 . . . 2 . . . . 1 Terminals 4 | . 1 . . . 1 . 1 . . . . . . . . 1 Botnet 2 | . . . . . 1 . . . . . . . . . . 1 Operators 2 | . 1 . . . . . 1 . . . . . . . . . Fabricators 1 | . . . . . . . . . . . 1 . . . . . Haulers 1 | . . . . . . . . . . . 1 . . . . . Repair Stations . | . . . . . . . . . . . . . . . . . Recycling Units 3 | . 1 . . . . . 1 . . . 1 . . . . . Reject 1 | . . . . . . . . . . . 1 . . . . . Tunnel 2 | . 1 . . . . . 1 . . . . . . . . . Scanalyzers . | . . . . . . . . . . . . . . . . . Garrison Access 1 | . . . . . . . 1 . . . . . . . . . Restock 1 | . . . . . . . 1 . . . . . . . . . Data Cores Recovered 1 | . . . . . . . 1 . . . . . . . . . Used 1 | . . . . . . . 1 . . . . . . . . . Hacking Detections 41 | . 3 . . 1 12 . 11 . 1 . 9 . . . . 4 Full Trace Events 2 | . . . . . . . . . . . 2 . . . . . Feedback Events . | . . . . . . . . . . . . . . . . . Feedback Blocked . | . . . . . . . . . . . . . . . . . Robot Schematics Acquired 3 | . . . . . . . . . . . . . . 3 . . Robots Built . | . . . . . . . . . . . . . . . . . Authchips . | . . . . . . . . . . . . . . . . . Time . | . . . . . . . . . . . . . . . . . Total Robot Build Rating . | . . . . . . . . . . . . . . . . . Part Schematics Acquired 20 | . . . . . 2 . 4 . . . . . . 14 . . Parts Built . | . . . . . . . . . . . . . . . . . Authchips . | . . . . . . . . . . . . . . . . . Time . | . . . . . . . . . . . . . . . . . Total Part Build Rating . | . . . . . . . . . . . . . . . . . Parts Repaired 7 | . . . . . 3 . . . 3 . 1 . . . . . Time 236 | . . . . . 84 . . . 108 . 44 . . . . . Parts Recycled . | . . . . . . . . . . . . . . . . . Recycled Matter . | . . . . . . . . . . . . . . . . . Retrieved Matter . | . . . . . . . . . . . . . . . . . Retrieved Components . | . . . . . . . . . . . . . . . . . Parts Scanalyzed 6 | . . . . . 2 . 4 . . . . . . . . . Part Schematics Acquired 6 | . . . . . 2 . 4 . . . . . . . . . Parts Damaged . | . . . . . . . . . . . . . . . . . Bothacking | -11 -10 -10 -10 -9 -8 -8 -8 -8 -7 -7 -7 -7 -7 -7 -6 -6 ------------ Run | Scr Mat Min Exi Min Mat Gar Mat Gar Fac Was Fac Low Low Zio Pro Fac Used RIF Installer 2 | . . . . . . 1 . 1 . . . . . . . . Hotswap 1 | . . . . . . . . 1 . . . . . . . . Robots Hacked 22 | . . . . . . . 2 4 . 6 4 5 . . . 1 Non-combat 4 | . . . . . . . 2 . . . 2 . . . . . Combat 18 | . . . . . . . . 4 . 6 2 5 . . . 1 Robot Hacks Applied 25 | . . . . . . . 3 4 . 8 4 5 . . . 1 drop_inventory 1 | . . . . . . . 1 . . . . . . . . . purge_threat 2 | . . . . . . . 2 . . . . . . . . . locate_traps 1 | . . . . . . . . . . . 1 . . . . . map_route 1 | . . . . . . . . . . . 1 . . . . . ignore_targets 8 | . . . . . . . . . . 8 . . . . . . disrupt_area 2 | . . . . . . . . . . . . 2 . . . . amplify_resonance 3 | . . . . . . . . 1 . . . 2 . . . . overwrite_iff 3 | . . . . . . . . 1 . . 1 1 . . . . formatsys_high 4 | . . . . . . . . 2 . . 1 . . . . 1 Relay Couplers Released 19 | . . . . . . 4 4 11 . . . . . . . . Machine Destruction 15 | . . . . . . 4 . 11 . . . . . . . . Programmers 4 | . . . . . . . 4 . . . . . . . . . Attached 10 | . . . . . . . 1 3 . 2 2 1 . . . 1 Fabnet Peak Effective % . | . . . . . . . . . . . . . . . . . Robots Rewired 2 | . . . . . . . . . . . . 2 . . . . Allies Hacked . | . . . . . . . . . . . . . . . . . Hacks Repelled . | . . . . . . . . . . . . . . . . . Allies | -11 -10 -10 -10 -9 -8 -8 -8 -8 -7 -7 -7 -7 -7 -7 -6 -6 -------- Run | Scr Mat Min Exi Min Mat Gar Mat Gar Fac Was Fac Low Low Zio Pro Fac Total Allies 10 | . . 1 . . . . . 3 . . 2 3 . . . 1 Largest Group 2 | . . 1 . . . . . 2 . . 1 2 . . . 1 Highest-Rated Group 36 | . . 31 . . . . . 32 . . 32 32 . . . 36 Highest-Rated Ally 36 | . . 31 . . . . . 18 . . 32 16 . . . 36 Total Orders 1 | . . . . . . . . . . . . . . . . 1 EXPLORE 1 | . . . . . . . . . . . . . . . . 1 Ally Attacks 34 | . . . . . . . . 6 . . 5 21 . . . 2 Total Damage 576 | . . . . . . . . 63 . . 203 237 . . . 73 Kills 1 | . . . . . . . . 1 . . . . . . . . Allies Corrupted . | . . . . . . . . . . . . . . . . . Allies Melted 1 | . . . . . . . . . . . 1 . . . . . Intel | -11 -10 -10 -10 -9 -8 -8 -8 -8 -7 -7 -7 -7 -7 -7 -6 -6 ------- Run | Scr Mat Min Exi Min Mat Gar Mat Gar Fac Was Fac Low Low Zio Pro Fac Robot Analysis Total 5 | . 2 . . 1 2 . . . . . . . . . . . Derelict Logs Recovered 4 | . . 2 . 1 . . . . . . . 1 . . . . Drone Launches 1 | . . . . . . . . . . . . . . . . 1 Drone Recoveries . | . . . . . . . . . . . . . . . . . Exploration | -11 -10 -10 -10 -9 -8 -8 -8 -8 -7 -7 -7 -7 -7 -7 -6 -6 ------------- Run | Scr Mat Min Exi Min Mat Gar Mat Gar Fac Was Fac Low Low Zio Pro Fac Turns Passed 16349 | 5 1201 1079 590 331 2453 1159 1917 1454 355 449 1369 1309 592 323 312 1451 Spaces Moved 7082 | 1 554 547 311 222 921 492 734 600 91 126 542 624 346 202 160 609 Core 6 | . 1 . . . . . . . . . . . . . . 5 Treads 263 | 1 152 . . . . 1 104 . . . . 5 . . . . Legs 1239 | . 401 547 291 . . . . . . . . . . . . . Wheels 5574 | . . . 20 222 921 491 630 600 91 126 542 619 346 202 160 604 Hover . | . . . . . . . . . . . . . . . . . Flight . | . . . . . . . . . . . . . . . . . Fastest Speed 50 | 160 120 190 125 125 180 190 170 170 195 195 190 155 155 155 155 50 Average Speed 180 | 160 159 190 185 135 187 191 202 177 195 201 191 171 155 155 155 189 Slowest Speed 810 | 160 500 190 190 155 190 810 401 195 195 210 210 320 155 155 155 400 Overloaded Moves . | . . . . . . . . . . . . . . . . . Propulsion Burnouts . | . . . . . . . . . . . . . . . . . Robots Hopped . | . . . . . . . . . . . . . . . . . Cave-ins Triggered . | . . . . . . . . . . . . . . . . . Exploration Rate (%) 49 | 1 84 84 67 45 71 49 74 70 2 80 16 79 60 13 31 17 Regions Visited 16 Branch Regions 7 Pre-discovered Areas 4 | . 1 . 1 1 . . 1 . . . . . . . . . Known Exits Taken 4 | . . . 1 . 1 . 1 . . . 1 . . . . . Unknown Exits Taken 8 | 1 1 1 . 1 . . . . . . . 1 1 1 1 . Scrap Searched 4 | . . 1 . 1 . . . . . . . 2 . . . . Spaces Dug 47 | . 1 . . . 8 . 3 . . . 6 7 . 1 . 21 Terrain Destroyed 497 | . 17 12 . 8 32 29 63 8 1 1 69 70 94 1 . 92 Melee 9 | . 1 . . . 2 . 2 . . . 2 . . 1 . 1 Projectile 39 | . . 1 . . . . 1 . 1 1 26 2 2 . . 5 AOE 449 | . 16 11 . 8 30 29 60 8 . . 41 68 92 . . 86 Terrain Rammed . | . . . . . . . . . . . . . . . . . Walls Destroyed . | . . . . . . . . . . . . . . . . . Machines Disabled . | . . . . . . . . . . . . . . . . . Actions | -11 -10 -10 -10 -9 -8 -8 -8 -8 -7 -7 -7 -7 -7 -7 -6 -6 --------- Run | Scr Mat Min Exi Min Mat Gar Mat Gar Fac Was Fac Low Low Zio Pro Fac Total 9274 | 6 735 565 319 237 1382 606 990 817 263 227 733 794 374 208 209 809 Wait 688 | . 43 2 . . 160 20 71 49 138 11 42 59 2 . 39 52 Move 7068 | . 553 546 310 221 920 491 734 599 91 125 541 623 345 201 159 609 Hop . | . . . . . . . . . . . . . . . . . Pick Up 191 | . 20 . 2 3 54 12 26 10 26 4 10 7 1 . 1 15 Fast Attach 43 | . 6 1 . . 10 1 4 1 1 3 5 2 . . . 9 Attach 86 | 2 4 . . . 24 2 10 3 3 4 5 8 1 1 . 19 Detach 12 | . . . . . 1 . . . . 1 2 2 . . . 6 Swap 172 | . 12 2 1 3 33 10 20 16 1 10 20 12 6 3 4 19 Drop 155 | 4 15 1 2 1 40 12 26 10 . 10 14 5 1 1 . 13 Fire 742 | . 76 12 4 9 134 43 96 101 3 59 89 40 18 . 6 52 Melee 49 | . 6 . . . 6 13 2 . . . 5 . . 2 . 15 Ram . | . . . . . . . . . . . . . . . . . Kick 1 | . . 1 . . . . . . . . . . . . . . Crush 1 | . . . . . . . 1 . . . . . . . . . Escape Stasis 30 | . . . . . . 2 . 28 . . . . . . . . Rewire 36 | . . . . . . . . . . . . 36 . . . . Trap . | . . . . . . . . . . . . . . . . . Miscellaneous . | . . . . . . . . . . . . . . . . . Route ------- -11/Scrapyard -10/Materials (discovered 3 exits: [*Mat x2] / [*Min]) -10/Mines (discovered 2 exits: [*Mat] / *Exi) -10/Exiles (discovered 2 exits: *Min x2) -9/Mines -8/Materials (discovered 4 exits: *Fac x3 / Gar) -8/Garrison (discovered 2 exits: *Mat x2) -8/Materials (discovered 3 exits: *Fac x2 / Gar) -8/Garrison (discovered 3 exits: *Fac x3) -7/Factory -7/Waste -7/Factory (discovered 5 exits: Fac x2 / Sto / *Low x2) -7/Lower Caves -7/Lower Caves -7/Zion -6/Proximity Caves -6/Factory (discovered 4 exits: *Fac x4) History --------- Turn | Location | Event 6 | -11/Scrapyard | Discovered new exit (range 0) 6 | -11/Scrapyard | Entered Materials 126 | -10/Materials | Central database locked down 218 | -10/Materials | Discovered new exit (range 8) 307 | -10/Materials | Build established: Mutant 690 | -10/Materials | Build established: Scavenger-Mutant 698 | -10/Materials | Discovered new exit (range 11) 856 | -10/Materials | Discovered new exit (range 9) 1009 | -10/Materials | Build established: Mutant 1207 | -10/Materials | Entered Mines 1219 | -10/Mines | Met a Derelict bent on vengeance 1375 | -10/Mines | Discovered new exit (range 5) 1451 | -10/Mines | Deemed a non-threat by the Exiles lab entrance 1451 | -10/Mines | Discovered new exit (range 5) 1536 | -10/Mines | Learned Materials terminal intel 1960 | -10/Mines | Received a Mining Laser from a helpful Derelict 2286 | -10/Mines | Entered Exiles 2287 | -10/Exiles | Identified exit to Mines 2332 | -10/Exiles | Met 8R-AWN 2362 | -10/Exiles | Met EX-HEX 2530 | -10/Exiles | Met EX-DEC 2537 | -10/Exiles | Learned location of Zion (-7) 2571 | -10/Exiles | Met EX-BIN 2598 | -10/Exiles | Aligned with FarCom system 2600 | -10/Exiles | Given EX-Vault access code 2646 | -10/Exiles | Opened EX-Vault 2689 | -10/Exiles | Warned to stay clear of 0b10 Research branches 2853 | -10/Exiles | Attacked by the Exiles 2876 | -10/Exiles | Entered Mines 3081 | -9/Mines | Discovered new exit (range 8) 3207 | -9/Mines | Entered Materials 3207 | -8/Materials | Evolved 4 slots: Propulsion x1, Utility x2, Weapon x1 3208 | -8/Materials | Loaded intel: 12 terminal locations 3392 | -8/Materials | Lost 4 parts (2n2w) 3667 | -8/Materials | Lost 3 parts (3w) 3872 | -8/Materials | Discovered new exit (range 11) 4145 | -8/Materials | Garrison activated, responded to threat 4212 | -8/Materials | Lost 4 parts (1n3w) 4344 | -8/Materials | Repaired Lgt. Treads 4378 | -8/Materials | Repaired Arm. Wheel 4405 | -8/Materials | Repaired Lgt. Armor Plating 4549 | -8/Materials | Identified exit to Garrison 4561 | -8/Materials | Discovered new exit (range 16) 4943 | -8/Materials | Build established: Hauler-Tank 5320 | -8/Materials | Discovered new exit (range 14) 5498 | -8/Materials | Core integrity fell below 50% 5660 | -8/Materials | Entered Garrison 5700 | -8/Garrison | Triggered checkpoint 5760 | -8/Garrison | Triggered checkpoint 5790 | -8/Garrison | Triggered checkpoint 5918 | -8/Garrison | Discovered new exit (range 14) 6102 | -8/Garrison | Triggered checkpoint 6220 | -8/Garrison | Discovered new exit (range 9) 6247 | -8/Garrison | Installed Relay Interface Framework 6676 | -8/Garrison | Build established: Hauler-Mutant 6682 | -8/Garrison | Garrison Relay disabled 6819 | -8/Garrison | Entered Materials 7232 | -8/Materials | Build established: Hauler-Tank 7802 | -8/Materials | Lost 7 parts (1p2n2u2w) 7855 | -8/Materials | Discovered new exit (range 5) 8437 | -8/Materials | Build established: Hauler-Gunner 8682 | -8/Materials | Discovered new exit (range 16) 8736 | -8/Materials | Identified exit to Garrison 8736 | -8/Materials | Entered Garrison 8818 | -8/Garrison | Triggered checkpoint 8838 | -8/Garrison | Triggered checkpoint 8930 | -8/Garrison | Discovered new exit (range 15) 9027 | -8/Garrison | Build established: Bothacker-Gunner 9102 | -8/Garrison | Discovered new exit (range 12) 9178 | -8/Garrison | Triggered checkpoint 9488 | -8/Garrison | Discovered new exit (range 8) 9512 | -8/Garrison | Expanded RIF knowledge: Hotswap 9542 | -8/Garrison | Triggered checkpoint 9581 | -8/Garrison | Garrison Relay disabled 9726 | -8/Garrison | Triggered checkpoint 9791 | -8/Garrison | Garrison Relay disabled 9892 | -8/Garrison | Build established: Bothacker-Mutant 10064 | -8/Garrison | Triggered checkpoint 10095 | -8/Garrison | Garrison Relay disabled 10190 | -8/Garrison | Entered Factory 10190 | -7/Factory | Evolved 2 slots: Utility x2 10297 | -7/Factory | Repaired Gauss Rifle 10324 | -7/Factory | Repaired Cargo Storage Unit 10464 | -7/Factory | Repaired Arm. Treads 10545 | -7/Factory | Sucked down chute 10545 | -7/Factory | Entered Waste 10560 | -7/Waste | EMP discharged 10583 | -7/Waste | Spotted C-40 Crusher 10586 | -7/Waste | Spotted C-40 Crusher 10588 | -7/Waste | Spotted C-40 Crusher 10629 | -7/Waste | Spotted C-40 Crusher 10629 | -7/Waste | Spotted C-40 Crusher 10642 | -7/Waste | Spotted C-40 Crusher 10660 | -7/Waste | EMP discharged 10660 | -7/Waste | System corruption reached 10% 10662 | -7/Waste | Destroyed C-40 Crusher 10737 | -7/Waste | Destroyed C-40 Crusher 10759 | -7/Waste | Found Damper Plating 10760 | -7/Waste | EMP discharged 10860 | -7/Waste | EMP discharged 10872 | -7/Waste | Destroyed C-40 Crusher 10898 | -7/Waste | Found Damper Plating 10960 | -7/Waste | EMP discharged 10973 | -7/Waste | Discovered new exit (range 11) 10994 | -7/Waste | Entered Factory 11330 | -7/Factory | Repaired Arm. Huge Wheel 11593 | -7/Factory | Discovered new exit (range 11) 11593 | -7/Factory | Discovered new exit (range 131) 11820 | -7/Factory | Identified exit to Storage 11820 | -7/Factory | Identified exit to Lower Caves 12363 | -7/Factory | Entered Lower Caves 12489 | -7/Lower Caves | Attracted the attention of an 0b10 checkpoint 12707 | -7/Lower Caves | Build established: Hauler-Mutant 13230 | -7/Lower Caves | Attracted the attention of an 0b10 outpost 13290 | -7/Lower Caves | Lost 4 parts (1p1n2w) 13657 | -7/Lower Caves | Discovered new exit (range 11) 13664 | -7/Lower Caves | Attacked by a faux Warlord 13672 | -7/Lower Caves | Entered another Lower Caves area 14045 | -7/Lower Caves | Build established: Hauler-Tank 14250 | -7/Lower Caves | Discovered new exit (range 8) 14264 | -7/Lower Caves | Entered Zion 14371 | -7/Zion | Discovered new exit (range 14) 14530 | -7/Zion | System corruption cleaned by Quarantine Array 14587 | -7/Zion | Entered Proximity Caves 14685 | -6/Proximity Caves | Attracted the attention of an 0b10 checkpoint 14884 | -6/Proximity Caves | Discovered new exit (range 9) 14899 | -6/Proximity Caves | Entered Factory 14899 | -6/Factory | Evolved 2 slots: Propulsion x1, Utility x1 15327 | -6/Factory | Identified exit to Factory 15997 | -6/Factory | Build established: Hauler-Mutant 16281 | -6/Factory | Core integrity fell below 50% 16332 | -6/Factory | Core integrity fell below 20% 16350 | -6/Factory | Destroyed by H-66 Slayer with Gauss Rifle Last Messages --------------- 16326_ K-01 Serf collects debris. 16328_ Penetrated by Slug. 16330_ Wheel destroyed. 16330_ Slug penetrates Assembly Bed. 16330_ Assembly Bed disabled. 16330_ K-01 Serf collects debris. 16331_ Penetrated by Slug. 16332_ K-01 Serf collects debris. 16337_ The unstable cave ceiling collapses. 16337_ Slug penetrates Wall. 16337_ Penetrated by Slug. 16337_ Critical hit (Destroy). 16338_ K-01 Serf collects debris. 16344_ Hrd. Heavy Armor Plating destroyed. 16344_ Penetrated by Slug. 16345_ K-01 Serf collects debris. 16345_ R-10 Processor collects Wheel. 16348_ K-01 Serf collects debris. 16349_ R-10 Processor collects Lgt. Ion Engine. 16350_ Penetrated by Slug. Map ----- +----------------------------------------------------+ | ?????????????????????????????????????????????????? | | ?????????????????????????????????????????????????? | | ?????????????????????????????????????????????????? | | ?????????????????????????????????????????????????? | | ?????????????????????????????????????????????????? | | ?????????????????????????????????????????????????? | | ?????????????????????????????????????????????????? | | ????????????????????? ?????????????????????????? | | ???????????????????# ????????? ???????????????? | | ???????????????????# ??####### ???????????????? | | ???????????????????# ### "####????????????? | | ???????????????????# #"" ""##???????????? | | ???????????????????# # #???????????? | | ???????????????????# " #???????????? | | ???????????????????# #???????????? | | ???????????????????# #???????????? | | ?????????? ??????### # #???????????? | | ????????? ###### # # #???????????? | | ????????? %= #???????????? | | ????????? #???????????? | | ???????? # #???????????? | | ???????? ![* #???????????? | | ??????? =%![= ]=&!| #???????????? | | ????????# ^ =*["%= [ ![! #???????????? | | ????????# =[!####[!!!!]############+### | | ????????# ! h@ =[!] | | ????????+ *[%!/ | | ????????# #### h *%! | | ?????????????#] [% R#### ##############+### | | ?????????????# %! # k # | | ?????????????# ### "" """ ! #??"" """ | | ?????????????# "" ##?# """""" #??"" """ | | ?????????????#""" """ #??# """""" ! #??"" """ | | ???????????????F """ #??# """""" # | | ??????????????""" """ #??# !!# | | ?????????????? ""?? ##??# """""" !!# ] ] | | ??????????????????? ????# """""" # ! | | ??????????????????? ????# ?""""" ########## | | ???????????????????##+#????# """""" ########## | | ???????????????????????????# + | | ???????????????????????????# ########## | | ???????????????????????????##############????????? | | ?????????????????????????????????????????????????? | | ?????????????????????????????????????????????????? | | ?????????????????????????????????????????????????? | | ?????????????????????????????????????????????????? | | ?????????????????????????????????????????????????? | | ?????????????????????????????????????????????????? | | ?????????????????????????????????????????????????? | | ?????????????????????????????????????????????????? | +----------------------------------------------------+ Best States ------------- Heat Dissipation 61 Coolant Potential 65 Energy Generation 21 Energy Capacity 325 Matter Stores 400 Matter Capacity 400 Sight Range 16 Robot Scan Range 15 Terrain Scan Range 16 Terrain Scan Density 60 Jamming Range 12 EM Shielding 2 Armor Coverage 1600 Resistance: EM 90 Utility Shielding 66 Evasion (%) 55 Targeting Accuracy 8 Recoil Reduction 3 Matter Filtering 30 Offensive Hacking 20 Relay Coupler Types 2 Relay Coupler Value 38 Item Schematics ----------------- Arm. Wheel | -8/Materials | Scanalyzed Remote Datajack | -8/Materials | Scanalyzed Arm. Treads | -8/Materials | Scanalyzed Imp. Medium Armor Plating | -8/Materials | Scanalyzed Adv. Treads | -8/Materials | Scanalyzed Weapon Cycler | -8/Materials | Scanalyzed Lgt. Fission Core | -7/Zion | Archive Imp. Heat Shielding | -7/Zion | Archive Adv. Sensor Array | -7/Zion | Archive Imp. Focal Shield | -7/Zion | Archive Adv. Shield Generator | -7/Zion | Archive Lightning Gun | -7/Zion | Archive Imp. Transmission Jammer | -7/Zion | Archive Med. Reactive Plating | -7/Zion | Archive Flexi-carbon Leg | -7/Zion | Archive Imp. Cooling System | -7/Zion | Archive Gatling Laser | -7/Zion | Archive Plasma Flamer | -7/Zion | Archive Nuclear Pulse Thruster | -7/Zion | Archive Hvy. Missile Launcher | -7/Zion | Archive Robot Schematics ------------------ Y-54 Guardian | -7/Zion | Archive B-36 Bruiser | -7/Zion | Archive C-57 Dissector | -7/Zion | Archive Fabricated ------------ Nothing Alien Tech Used ----------------- None Achievements -------------- None Challenges ------------ None Game ------ Seed ZioniteTachyonBooster Manual? 0 Play Time 01:44:54 Cumulative 507.7 hours Start 2021.11.22 @ 23:21:37 End 2021.11.23 @ 01:11:38 Sessions 1 Manual Loads 0 Difficulty Rogue Special Mode None Game No. 491 Rogue 491 Adventurer 0 Explorer 0 Win Type - Total 13 Types 9/0/3/1/0/0/0/0/0 Lore% 83 Gallery% 94 Achievement% 72 Wizard Run 0 Options --------- ASCII 0 Keyboard 0 Movement Mouse Keybinds 1 Fullscreen 2 Font 24/Smallcaps Map View 76x50 Tactical HUD 1 Map Filters NONE Filters NONE Steam 1 RUN: ba27725f-d28c-45ae-9edf-eb46a043d1c7